[Event "*** Titled Tuesday 3|2 Blitz (Early)"]
[Site "Chess.com"]
[Date "2016.11.01"]
[Round "7"]
[White "SavelijTartakover"]
[Black "NTBT_DHS"]
[Result "0-1"]
[WhiteElo "2474"]
[BlackElo "2503"]
[TimeControl "180+2"]
[EndTime "12:31:57 PDT"]
[Termination "NTBT_DHS won by checkmate"]

1. d4 {[%clk 0:02:46.8]} 1... Nf6 {[%clk 0:03:00]} 2. c4 {[%clk 0:02:47.5]} 2...
g6 {[%clk 0:03:01.1]} 3. Nc3 {[%clk 0:02:44.4]} 3... Bg7 {[%clk 0:03:01.7]} 4.
e4 {[%clk 0:02:45.1]} 4... d6 {[%clk 0:03:03.3]} 5. Be2 {[%clk 0:02:45.7]} 5...
O-O {[%clk 0:03:03.9]} 6. Bg5 {[%clk 0:02:46.1]} 6... c5 {[%clk 0:03:04.8]} 7.
d5 {[%clk 0:02:46.8]} 7... a6 {[%clk 0:03:02.4]} 8. a4 {[%clk 0:02:46.9]} 8...
Nbd7 {[%clk 0:03:02.2]} 9. Qd2 {[%clk 0:02:46.9]} 9... Qa5 {[%clk 0:03:01.6]}
10. Nf3 {[%clk 0:02:46.4]} 10... Nb6 {[%clk 0:03:01.1]} 11. O-O {[%clk
0:02:42.6]} 11... Qb4 {[%clk 0:03:01.3]} 12. Qc2 {[%clk 0:02:08.3]} 12... Nxc4
{[%clk 0:02:47.3]} 13. Na2 {[%clk 0:02:06.5]} 13... Qxb2 {[%clk 0:02:48.5]} 14.
Qxc4 {[%clk 0:02:07.4]} 14... b5 {[%clk 0:02:49.5]} 15. Qc1 {[%clk 0:01:53.3]}
15... Qxe2 {[%clk 0:02:47.9]} 16. Re1 {[%clk 0:01:51]} 16... Qc4 {[%clk
0:02:43.6]} 17. Qxc4 {[%clk 0:01:50.8]} 17... bxc4 {[%clk 0:02:44.8]} 18. Rac1
{[%clk 0:01:47.2]} 18... Rb8 {[%clk 0:02:46]} 19. Rxc4 {[%clk 0:01:47.7]} 19...
Rb2 {[%clk 0:02:46.7]} 20. Nc3 {[%clk 0:01:47]} 20... Nd7 {[%clk 0:02:40.1]} 21.
Nd1 {[%clk 0:01:37.3]} 21... Rb7 {[%clk 0:02:38.6]} 22. Bxe7 {[%clk 0:01:31.9]}
22... Nb6 {[%clk 0:02:38.2]} 23. Bxf8 {[%clk 0:01:31.9]} 23... Nxc4 {[%clk
0:02:39.4]} 24. Bxg7 {[%clk 0:01:32]} 24... Kxg7 {[%clk 0:02:40.9]} 25. Nc3
{[%clk 0:01:29.8]} 25... Rb3 {[%clk 0:02:40.3]} 26. Rc1 {[%clk 0:01:30.3]} 26...
Bg4 {[%clk 0:02:40.6]} 27. Ne1 {[%clk 0:01:28.2]} 27... Bd7 {[%clk 0:02:36.3]}
28. Nf3 {[%clk 0:01:27.5]} 28... Nb2 {[%clk 0:02:28.8]} 29. e5 {[%clk
0:01:17.5]} 29... Nd3 {[%clk 0:02:28.8]} 30. Rc2 {[%clk 0:01:18]} 30... dxe5
{[%clk 0:02:23.9]} 31. h3 {[%clk 0:01:17.5]} 31... f5 {[%clk 0:02:21.8]} 32. Nd2
{[%clk 0:01:14.6]} 32... Ra3 {[%clk 0:02:20.9]} 33. Nc4 {[%clk 0:01:10.9]} 33...
Ra1+ {[%clk 0:02:22]} 34. Kh2 {[%clk 0:01:12.4]} 34... Kf6 {[%clk 0:02:06.6]}
35. Nb6 {[%clk 0:01:06.8]} 35... Ke7 {[%clk 0:02:05.7]} 36. Rd2 {[%clk
0:01:05.9]} 36... e4 {[%clk 0:02:02.3]} 37. f3 {[%clk 0:01:07]} 37... Ra3 {[%clk
0:01:58.2]} 38. d6+ {[%clk 0:01:02.7]} 38... Ke6 {[%clk 0:01:53.5]} 39. Ncd5
{[%clk 0:01:01.5]} 39... Bc6 {[%clk 0:01:44.3]} 40. fxe4 {[%clk 0:00:58.5]}
40... fxe4 {[%clk 0:01:44.6]} 41. Nc7+ {[%clk 0:00:41.7]} 41... Kxd6 {[%clk
0:01:40.4]} 42. Nc4+ {[%clk 0:00:43.1]} 42... Kxc7 {[%clk 0:01:41.9]} 43. Nxa3
{[%clk 0:00:44.6]} 43... Bxa4 {[%clk 0:01:43.5]} 44. Kg3 {[%clk 0:00:41.7]}
44... Kd6 {[%clk 0:01:42.5]} 45. Kh4 {[%clk 0:00:40.8]} 45... h6 {[%clk
0:01:40.2]} 46. Nc4+ {[%clk 0:00:40.6]} 46... Ke6 {[%clk 0:01:41.2]} 47. g4
{[%clk 0:00:32.4]} 47... Bb5 {[%clk 0:01:41.7]} 48. Ne3 {[%clk 0:00:32.1]} 48...
Ke5 {[%clk 0:01:42.6]} 49. g5 {[%clk 0:00:30.9]} 49... h5 {[%clk 0:01:42.3]} 50.
Ra2 {[%clk 0:00:25.7]} 50... Kf4 {[%clk 0:01:35.1]} 51. Nd5+ {[%clk 0:00:25.4]}
51... Kf3 {[%clk 0:01:33.3]} 52. Ne7 {[%clk 0:00:20.2]} 52... Ne5 {[%clk
0:01:27.4]} 53. Ra3+ {[%clk 0:00:13.6]} 53... e3 {[%clk 0:01:24.7]} 54. Nd5
{[%clk 0:00:14.1]} 54... Bd3 {[%clk 0:01:26]} 55. Nc3 {[%clk 0:00:02.9]} 55...
Kg2 {[%clk 0:01:26.2]} 56. Ra2+ {[%clk 0:00:02.2]} 56... e2 {[%clk 0:01:27.5]}
57. Nxe2 {[%clk 0:00:03]} 57... Nf3# {[%clk 0:01:28.2]} 0-1

[Event "*** Titled Tuesday 3|2 Blitz (Early)"]
[Site "Chess.com"]
[Date "2016.11.01"]
[Round "7"]
[White "FairChess_on_YouTube"]
[Black "swayamsm"]
[Result "1-0"]
[WhiteElo "2743"]
[BlackElo "2643"]
[TimeControl "180+2"]
[EndTime "12:32:17 PDT"]
[Termination "FairChess_on_YouTube won on time"]

1. d4 {[%clk 0:03:01.9]} 1... Nf6 {[%clk 0:03:00.6]} 2. Nf3 {[%clk 0:03:01]}
2... e6 {[%clk 0:02:58.1]} 3. Bg5 {[%clk 0:03:01.3]} 3... b6 {[%clk 0:02:51.8]}
4. e4 {[%clk 0:02:59.2]} 4... h6 {[%clk 0:02:53.2]} 5. Bxf6 {[%clk 0:03:00.2]}
5... Qxf6 {[%clk 0:02:55.1]} 6. Bd3 {[%clk 0:02:58.9]} 6... Bb7 {[%clk
0:02:56.1]} 7. O-O {[%clk 0:02:59]} 7... Qd8 {[%clk 0:02:54.3]} 8. Nbd2 {[%clk
0:02:55.6]} 8... d6 {[%clk 0:02:53.7]} 9. c3 {[%clk 0:02:53.3]} 9... Nd7 {[%clk
0:02:54]} 10. Qe2 {[%clk 0:02:51.8]} 10... g6 {[%clk 0:02:51.1]} 11. Ba6 {[%clk
0:02:42.7]} 11... Qc8 {[%clk 0:02:51.7]} 12. Bxb7 {[%clk 0:02:43.6]} 12... Qxb7
{[%clk 0:02:53.6]} 13. e5 {[%clk 0:02:41.4]} 13... Bg7 {[%clk 0:02:43.4]} 14.
exd6 {[%clk 0:02:37.6]} 14... cxd6 {[%clk 0:02:45.3]} 15. Ne4 {[%clk 0:02:36.3]}
15... Qc7 {[%clk 0:02:39.7]} 16. Qc4 {[%clk 0:02:33.5]} 16... Kd8 {[%clk
0:01:35.6]} 17. Qa6 {[%clk 0:02:29]} 17... Ke7 {[%clk 0:01:32.1]} 18. a4 {[%clk
0:02:27.6]} 18... Rhc8 {[%clk 0:01:28.2]} 19. a5 {[%clk 0:02:25.3]} 19... Kf8
{[%clk 0:01:24.9]} 20. axb6 {[%clk 0:02:24.2]} 20... Nxb6 {[%clk 0:01:20.8]} 21.
Ra2 {[%clk 0:02:20.8]} 21... e5 {[%clk 0:00:55.9]} 22. dxe5 {[%clk 0:02:15.5]}
22... dxe5 {[%clk 0:00:56.8]} 23. b4 {[%clk 0:01:56]} 23... Kg8 {[%clk
0:00:52.4]} 24. Nc5 {[%clk 0:01:49.5]} 24... Rd8 {[%clk 0:00:53.4]} 25. h4
{[%clk 0:01:46]} 25... Nd5 {[%clk 0:00:41]} 26. Qc4 {[%clk 0:01:46.3]} 26... Nf4
{[%clk 0:00:36.4]} 27. g3 {[%clk 0:01:32.8]} 27... Nd5 {[%clk 0:00:24.4]} 28.
Ra6 {[%clk 0:01:19.3]} 28... e4 {[%clk 0:00:23.1]} 29. Qxe4 {[%clk 0:01:17.9]}
29... Nxc3 {[%clk 0:00:22.6]} 30. Qc4 {[%clk 0:01:11.1]} 30... Nd5 {[%clk
0:00:24.1]} 31. h5 {[%clk 0:01:09.9]} 31... gxh5 {[%clk 0:00:22.6]} 32. Nh4
{[%clk 0:01:08.8]} 32... Rab8 {[%clk 0:00:21.5]} 33. Rb1 {[%clk 0:00:53.9]}
33... Rb6 {[%clk 0:00:17]} 34. Nf5 {[%clk 0:00:51.2]} 34... Bf8 {[%clk
0:00:17.3]} 35. Rc1 {[%clk 0:00:34.2]} 35... Rxb4 {[%clk 0:00:15.4]} 36. Qe2
{[%clk 0:00:31.8]} 36... Rb6 {[%clk 0:00:16.7]} 37. Nd3 {[%clk 0:00:24.2]} 37...
Nc3 {[%clk 0:00:09.9]} 38. Rxc3 {[%clk 0:00:16.3]} 38... Qxc3 {[%clk 0:00:10]}
39. Nf4 {[%clk 0:00:16.3]} 39... Rxa6 {[%clk 0:00:03.5]} 40. Qxa6 {[%clk
0:00:16.9]} 40... Qe5 {[%clk 0:00:03.1]} 41. Nxh6+ {[%clk 0:00:15.1]} 41... Kg7
{[%clk 0:00:03.7]} 42. Qxa7 {[%clk 0:00:14]} 42... Rd1+ {[%clk 0:00:02.5]} 43.
Kh2 {[%clk 0:00:14.6]} 1-0

[Event "*** Titled Tuesday 3|2 Blitz (Early)"]
[Site "Chess.com"]
[Date "2016.11.01"]
[Round "7"]
[White "viditchess"]
[Black "Genghis_K"]
[Result "0-1"]
[WhiteElo "2556"]
[BlackElo "2666"]
[TimeControl "180+2"]
[EndTime "12:32:25 PDT"]
[Termination "Genghis_K won by resignation"]

1. d4 {[%clk 0:03:02]} 1... Nf6 {[%clk 0:02:55.5]} 2. c4 {[%clk 0:02:56.1]} 2...
g6 {[%clk 0:02:56.6]} 3. g3 {[%clk 0:02:56.6]} 3... Bg7 {[%clk 0:02:57.4]} 4.
Bg2 {[%clk 0:02:58]} 4... O-O {[%clk 0:02:59]} 5. Nc3 {[%clk 0:02:58.8]} 5... d6
{[%clk 0:02:59.6]} 6. Nf3 {[%clk 0:03:00.4]} 6... Nc6 {[%clk 0:02:59.3]} 7. O-O
{[%clk 0:02:59.6]} 7... a6 {[%clk 0:03:00.2]} 8. d5 {[%clk 0:02:56.7]} 8... Na5
{[%clk 0:03:01]} 9. b3 {[%clk 0:02:58.2]} 9... c5 {[%clk 0:02:55.9]} 10. dxc6
{[%clk 0:02:58.7]} 10... Nxc6 {[%clk 0:02:57.2]} 11. Bd2 {[%clk 0:02:58.1]}
11... Bf5 {[%clk 0:02:55.7]} 12. Nh4 {[%clk 0:02:42.6]} 12... Bd7 {[%clk
0:02:45.5]} 13. Rc1 {[%clk 0:02:41.8]} 13... Rc8 {[%clk 0:02:45.1]} 14. Be3
{[%clk 0:02:36.4]} 14... Ng4 {[%clk 0:02:39.8]} 15. Bd2 {[%clk 0:02:37.5]} 15...
Nf6 {[%clk 0:02:40.3]} 16. h3 {[%clk 0:02:36.5]} 16... Na5 {[%clk 0:02:34.2]}
17. Nd5 {[%clk 0:02:01.8]} 17... Nc6 {[%clk 0:02:26.2]} 18. Bc3 {[%clk
0:01:46.4]} 18... Nxd5 {[%clk 0:02:23.2]} 19. Qxd5 {[%clk 0:01:46.7]} 19... Nd4
{[%clk 0:02:04.6]} 20. Qe4 {[%clk 0:01:13.3]} 20... e5 {[%clk 0:02:05.8]} 21.
Qd3 {[%clk 0:01:10.9]} 21... b5 {[%clk 0:02:07.1]} 22. e3 {[%clk 0:00:57.1]}
22... Nf5 {[%clk 0:02:06.7]} 23. Nf3 {[%clk 0:00:55.1]} 23... Be6 {[%clk
0:01:54.4]} 24. Nd2 {[%clk 0:00:49.8]} 24... Qb6 {[%clk 0:01:55.7]} 25. cxb5
{[%clk 0:00:41.5]} 25... axb5 {[%clk 0:01:49.2]} 26. Bb4 {[%clk 0:00:42.5]}
26... Rfd8 {[%clk 0:01:45.3]} 27. Bd5 {[%clk 0:00:19.9]} 27... Rxc1 {[%clk
0:01:28.3]} 28. Rxc1 {[%clk 0:00:20.2]} 28... Bxd5 {[%clk 0:01:29.7]} 29. Qxd5
{[%clk 0:00:22.1]} 29... Ne7 {[%clk 0:01:31.1]} 30. Qf3 {[%clk 0:00:20]} 30...
f5 {[%clk 0:01:27.6]} 31. g4 {[%clk 0:00:20.6]} 31... e4 {[%clk 0:01:23.3]} 32.
Qe2 {[%clk 0:00:20.2]} 32... Kh8 {[%clk 0:01:14.2]} 33. gxf5 {[%clk 0:00:20.7]}
33... gxf5 {[%clk 0:01:15.8]} 34. Kh1 {[%clk 0:00:21.5]} 34... Nd5 {[%clk
0:01:12.9]} 35. a3 {[%clk 0:00:21.3]} 35... Nxb4 {[%clk 0:01:11.4]} 36. axb4
{[%clk 0:00:22.5]} 36... d5 {[%clk 0:01:13.1]} 37. Qh5 {[%clk 0:00:15]} 37...
Qf6 {[%clk 0:01:12.1]} 38. Nf1 {[%clk 0:00:13.7]} 38... d4 {[%clk 0:01:13]} 39.
exd4 {[%clk 0:00:14.7]} 39... f4 {[%clk 0:01:12.3]} 40. d5 {[%clk 0:00:13.5]}
40... Rg8 {[%clk 0:01:08.1]} 41. Nd2 {[%clk 0:00:09.8]} 41... Qd4 {[%clk
0:01:09.6]} 42. Qe2 {[%clk 0:00:07]} 42... e3 {[%clk 0:01:10.9]} 43. fxe3 {[%clk
0:00:07.6]} 43... fxe3 {[%clk 0:01:08.8]} 44. Nf3 {[%clk 0:00:08.7]} 44... Qf4
{[%clk 0:01:07.5]} 45. Rg1 {[%clk 0:00:09.4]} 45... Rf8 {[%clk 0:00:59.3]} 46.
Ng5 {[%clk 0:00:10.4]} 46... h6 {[%clk 0:00:53.9]} 47. Ne6 {[%clk 0:00:07.5]}
47... Qe4+ {[%clk 0:00:55.4]} 48. Qg2 {[%clk 0:00:07]} 48... Qxg2+ {[%clk
0:00:56.6]} 49. Kxg2 {[%clk 0:00:07]} 49... Rf2+ {[%clk 0:00:58.2]} 50. Kg3
{[%clk 0:00:07.2]} 50... Be5+ {[%clk 0:00:54.8]} 51. Kg4 {[%clk 0:00:08.8]}
51... e2 {[%clk 0:00:56.2]} 52. Nc5 {[%clk 0:00:09]} 52... Rf1 {[%clk
0:00:44.1]} 0-1

[Event "*** Titled Tuesday 3|2 Blitz (Early)"]
[Site "Chess.com"]
[Date "2016.11.01"]
[Round "7"]
[White "Alexander_Moskalenko"]
[Black "Taabling"]
[Result "0-1"]
[WhiteElo "2669"]
[BlackElo "2289"]
[TimeControl "180+2"]
[EndTime "12:32:38 PDT"]
[Termination "Taabling won by checkmate"]

1. e4 {[%clk 0:03:02]} 1... c5 {[%clk 0:02:58.9]} 2. Nf3 {[%clk 0:03:03]} 2...
d6 {[%clk 0:02:58.9]} 3. Bb5+ {[%clk 0:03:00.5]} 3... Nd7 {[%clk 0:02:58.6]} 4.
d4 {[%clk 0:02:55.2]} 4... cxd4 {[%clk 0:02:58.6]} 5. Qxd4 {[%clk 0:02:55.7]}
5... a6 {[%clk 0:02:59.8]} 6. Bxd7+ {[%clk 0:02:57.2]} 6... Bxd7 {[%clk
0:03:00.2]} 7. c4 {[%clk 0:02:58.4]} 7... e5 {[%clk 0:03:01]} 8. Qd3 {[%clk
0:02:58.5]} 8... h6 {[%clk 0:03:02.2]} 9. Nc3 {[%clk 0:02:48.9]} 9... Nf6 {[%clk
0:03:03.1]} 10. b3 {[%clk 0:02:49.3]} 10... Be7 {[%clk 0:03:03.6]} 11. a4 {[%clk
0:02:48.5]} 11... O-O {[%clk 0:03:01.2]} 12. Ba3 {[%clk 0:02:37.9]} 12... b5
{[%clk 0:03:01.9]} 13. O-O {[%clk 0:02:35.5]} 13... bxc4 {[%clk 0:02:59.7]} 14.
bxc4 {[%clk 0:02:29.7]} 14... Qc7 {[%clk 0:02:56.5]} 15. Nxe5 {[%clk 0:02:27.8]}
15... Be6 {[%clk 0:02:46.3]} 16. Nd5 {[%clk 0:02:20.9]} 16... Bxd5 {[%clk
0:02:47.1]} 17. exd5 {[%clk 0:02:02]} 17... dxe5 {[%clk 0:02:45.6]} 18. d6
{[%clk 0:02:02]} 18... Qd7 {[%clk 0:02:16.2]} 19. c5 {[%clk 0:01:58.4]} 19...
Bd8 {[%clk 0:02:14]} 20. Rfc1 {[%clk 0:01:56.4]} 20... Qc6 {[%clk 0:02:14.7]}
21. Re1 {[%clk 0:01:39.6]} 21... Nd7 {[%clk 0:02:14.8]} 22. Qf3 {[%clk
0:01:40.3]} 22... Rc8 {[%clk 0:02:12.8]} 23. Qf5 {[%clk 0:01:39.3]} 23... g6
{[%clk 0:02:11.9]} 24. Qh3 {[%clk 0:01:39.8]} 24... Kg7 {[%clk 0:02:10.7]} 25.
Rac1 {[%clk 0:01:36.3]} 25... Bf6 {[%clk 0:02:02.4]} 26. Qb3 {[%clk 0:01:36.8]}
26... Rb8 {[%clk 0:02:00.6]} 27. Qc4 {[%clk 0:01:37.5]} 27... Rfc8 {[%clk
0:01:58.2]} 28. g3 {[%clk 0:01:38.9]} 28... h5 {[%clk 0:01:57.6]} 29. h4 {[%clk
0:01:39]} 29... Re8 {[%clk 0:01:46.4]} 30. Re3 {[%clk 0:01:37.5]} 30... e4
{[%clk 0:01:47]} 31. Rd1 {[%clk 0:01:29.2]} 31... Re5 {[%clk 0:01:42.6]} 32. Kg2
{[%clk 0:01:24.9]} 32... Rc8 {[%clk 0:01:42.9]} 33. Rc1 {[%clk 0:00:38.3]} 33...
Re6 {[%clk 0:01:34.4]} 34. Qb3 {[%clk 0:00:31.3]} 34... Bd4 {[%clk 0:01:26.2]}
35. Bb2 {[%clk 0:00:32.4]} 35... Bxb2 {[%clk 0:01:24.3]} 36. Qxb2+ {[%clk
0:00:34.3]} 36... Kg8 {[%clk 0:01:25.3]} 37. Qd4 {[%clk 0:00:36]} 37... Re5
{[%clk 0:01:21]} 38. Kh2 {[%clk 0:00:16.5]} 38... a5 {[%clk 0:01:20.3]} 39. Rec3
{[%clk 0:00:16.2]} 39... Re6 {[%clk 0:01:12.5]} 40. Qc4 {[%clk 0:00:15.6]} 40...
e3 {[%clk 0:01:06.3]} 41. Rxe3 {[%clk 0:00:16.2]} 41... Rxe3 {[%clk 0:01:03.9]}
42. fxe3 {[%clk 0:00:18.1]} 42... Ne5 {[%clk 0:01:05.1]} 43. Qb5 {[%clk
0:00:16]} 43... Qf3 {[%clk 0:00:57.6]} 44. Qf1 {[%clk 0:00:12.7]} 44... Ng4+
{[%clk 0:00:55.3]} 45. Kh3 {[%clk 0:00:13.9]} 45... Nf2+ {[%clk 0:00:53]} 46.
Kh2 {[%clk 0:00:15.1]} 46... Qxe3 {[%clk 0:00:53.5]} 47. c6 {[%clk 0:00:14.6]}
47... Ng4+ {[%clk 0:00:51.8]} 48. Kh3 {[%clk 0:00:11.3]} 48... Qe6 {[%clk
0:00:52.3]} 49. d7 {[%clk 0:00:12.8]} 49... Ne3+ {[%clk 0:00:50.7]} 50. Kh2
{[%clk 0:00:06.7]} 50... Nxf1+ {[%clk 0:00:51.4]} 51. Rxf1 {[%clk 0:00:08.6]}
51... Qe2+ {[%clk 0:00:44.2]} 52. Kg1 {[%clk 0:00:06.9]} 52... Qe3+ {[%clk
0:00:44.1]} 53. Rf2 {[%clk 0:00:08.3]} 53... Rb8 {[%clk 0:00:43.8]} 54. c7
{[%clk 0:00:08.1]} 54... Rb1+ {[%clk 0:00:44.4]} 55. Kg2 {[%clk 0:00:09.6]}
55... Qe4+ {[%clk 0:00:45]} 56. Rf3 {[%clk 0:00:11.2]} 56... Rb2+ {[%clk
0:00:43.5]} 57. Kg1 {[%clk 0:00:08.9]} 57... Qe1+ {[%clk 0:00:43.2]} 58. Rf1
{[%clk 0:00:10.2]} 58... Qxg3+ {[%clk 0:00:44.2]} 59. Kh1 {[%clk 0:00:11.8]}
59... Qh2# {[%clk 0:00:45.3]} 0-1

[Event "*** Titled Tuesday 3|2 Blitz (Early)"]
[Site "Chess.com"]
[Date "2016.11.01"]
[Round "7"]
[White "Gabrielian_Artur"]
[Black "Paralinch"]
[Result "0-1"]
[WhiteElo "2565"]
[BlackElo "2671"]
[TimeControl "180+2"]
[EndTime "12:33:18 PDT"]
[Termination "Paralinch won by resignation"]

1. e4 {[%clk 0:03:01.3]} 1... c5 {[%clk 0:03:01.3]} 2. Nf3 {[%clk 0:03:01.7]}
2... e6 {[%clk 0:03:02.8]} 3. d4 {[%clk 0:03:02.5]} 3... cxd4 {[%clk 0:03:04.3]}
4. Nxd4 {[%clk 0:03:03.6]} 4... Nf6 {[%clk 0:03:05.9]} 5. Nc3 {[%clk 0:03:04.2]}
5... Nc6 {[%clk 0:03:07.5]} 6. Ndb5 {[%clk 0:03:03.8]} 6... Bb4 {[%clk
0:03:08.4]} 7. a3 {[%clk 0:03:02.6]} 7... Bxc3+ {[%clk 0:03:09.5]} 8. Nxc3
{[%clk 0:03:03.9]} 8... d5 {[%clk 0:03:11.2]} 9. exd5 {[%clk 0:03:04.7]} 9...
Nxd5 {[%clk 0:03:12.5]} 10. Bd2 {[%clk 0:03:03.6]} 10... O-O {[%clk 0:03:12]}
11. Bd3 {[%clk 0:03:03.7]} 11... Qh4 {[%clk 0:03:12.9]} 12. O-O {[%clk
0:02:58.4]} 12... Ne5 {[%clk 0:03:13.6]} 13. Be2 {[%clk 0:02:42.1]} 13... Nf4
{[%clk 0:03:14.2]} 14. Bxf4 {[%clk 0:02:24.1]} 14... Qxf4 {[%clk 0:03:14.7]} 15.
g3 {[%clk 0:02:25.6]} 15... Qf6 {[%clk 0:03:06.8]} 16. Ne4 {[%clk 0:02:16.6]}
16... Qe7 {[%clk 0:03:07]} 17. Qd4 {[%clk 0:02:16.7]} 17... Nc6 {[%clk
0:03:05.6]} 18. Qc3 {[%clk 0:02:15.2]} 18... e5 {[%clk 0:03:04]} 19. Rfd1 {[%clk
0:02:09.7]} 19... Nd4 {[%clk 0:02:59.4]} 20. Re1 {[%clk 0:01:26.8]} 20... Bf5
{[%clk 0:02:55.8]} 21. Bd1 {[%clk 0:00:55.2]} 21... Rac8 {[%clk 0:02:44.9]} 22.
Qb4 {[%clk 0:00:47.5]} 22... Qxb4 {[%clk 0:02:12.4]} 23. axb4 {[%clk 0:00:48]}
23... Rxc2 {[%clk 0:02:14]} 24. Bxc2 {[%clk 0:00:41.3]} 24... Nxc2 {[%clk
0:02:14.7]} 25. Nd6 {[%clk 0:00:42.5]} 25... Bh3 {[%clk 0:02:09.7]} 26. Nxb7
{[%clk 0:00:39]} 26... Rb8 {[%clk 0:02:02.5]} 27. Nc5 {[%clk 0:00:38.9]} 27...
f6 {[%clk 0:01:56.4]} 28. f4 {[%clk 0:00:30.9]} 28... exf4 {[%clk 0:01:46.4]}
29. gxf4 {[%clk 0:00:28.6]} 29... Rxb4 {[%clk 0:01:39]} 30. Nd3 {[%clk
0:00:25.1]} 30... Rd4 {[%clk 0:01:30.2]} 31. Nf2 {[%clk 0:00:18.3]} 31... Nxe1
{[%clk 0:01:31.2]} 32. Nxh3 {[%clk 0:00:14.8]} 32... Nd3 {[%clk 0:01:28.4]} 33.
Rxa7 {[%clk 0:00:14.6]} 33... Nxf4 {[%clk 0:01:29.5]} 34. Nxf4 {[%clk
0:00:14.6]} 34... Rxf4 {[%clk 0:01:30.6]} 35. Rb7 {[%clk 0:00:12.6]} 35... h5
{[%clk 0:01:28.6]} 36. h3 {[%clk 0:00:12.6]} 36... Kh7 {[%clk 0:01:28.9]} 37. b4
{[%clk 0:00:13.8]} 37... Kh6 {[%clk 0:01:27.4]} 38. b5 {[%clk 0:00:14]} 38...
Rb4 {[%clk 0:01:28.3]} 39. Kf2 {[%clk 0:00:14.4]} 39... g5 {[%clk 0:01:26]} 40.
b6 {[%clk 0:00:13.6]} 40... g4 {[%clk 0:01:11.1]} 41. hxg4 {[%clk 0:00:11.4]}
41... hxg4 {[%clk 0:01:13]} 42. Rb8 {[%clk 0:00:12.8]} 42... Kg5 {[%clk
0:01:14.4]} 43. b7 {[%clk 0:00:10.2]} 43... Kf5 {[%clk 0:01:11.6]} 44. Ke3
{[%clk 0:00:10.6]} 44... Rb2 {[%clk 0:01:11.6]} 45. Kd3 {[%clk 0:00:10.2]} 45...
Kf4 {[%clk 0:01:07.6]} 46. Kc3 {[%clk 0:00:08.6]} 46... Rb1 {[%clk 0:01:08.5]}
47. Kc2 {[%clk 0:00:09.6]} 47... Rb6 {[%clk 0:01:09.2]} 48. Kd3 {[%clk
0:00:09.9]} 48... g3 {[%clk 0:01:03.9]} 49. Ke2 {[%clk 0:00:10.4]} 49... Rb2+
{[%clk 0:01:04.2]} 50. Ke1 {[%clk 0:00:11.7]} 50... Kf3 {[%clk 0:00:59.5]} 51.
Rf8 {[%clk 0:00:09.8]} 51... Rb1+ {[%clk 0:00:58.6]} 52. Kd2 {[%clk 0:00:10.1]}
52... Rxb7 {[%clk 0:01:00]} 53. Rxf6+ {[%clk 0:00:11.5]} 53... Kg2 {[%clk
0:01:01.4]} 54. Rf8 {[%clk 0:00:10.2]} 54... Re7 {[%clk 0:01:01.5]} 55. Kd3
{[%clk 0:00:10.4]} 55... Kh2 {[%clk 0:01:02.3]} 56. Rh8+ {[%clk 0:00:11.5]}
56... Kg1 {[%clk 0:01:03.3]} 57. Kd2 {[%clk 0:00:12.6]} 57... g2 {[%clk
0:01:04.3]} 58. Kd3 {[%clk 0:00:10.3]} 58... Re6 {[%clk 0:00:58.9]} 59. Kd2
{[%clk 0:00:10.9]} 59... Re5 {[%clk 0:00:59.8]} 60. Kd3 {[%clk 0:00:12.1]} 60...
Kf2 {[%clk 0:01:00.5]} 61. Rf8+ {[%clk 0:00:12.8]} 61... Kg3 {[%clk 0:01:01.6]}
62. Rg8+ {[%clk 0:00:14.1]} 62... Kf3 {[%clk 0:01:02.8]} 63. Kd2 {[%clk
0:00:11.5]} 63... Re4 {[%clk 0:01:03.7]} 0-1